{"text_format":"1","workbook":"xlsx","n_sheets":13,"sheets":["January","February","March","April","May","June","July","Aug","Sep","Oct","Nov","Dec","BD1"],"not_rendered":{"charts":0,"images":2,"macros":1,"external_links":0,"defined_names":25,"comments":12,"pivot_tables":0},"unopened":[],"bounds":{"document_bytes":16777216,"sheet_cells":100000,"rows_first":2000,"rows_last":500,"rows_between":2000,"halvings":0,"cell_chars":16384,"cell_head_chars":4096},"cells_cut":0,"cells_raw":0,"read":"whole","date_system":"1900"}

{"sheet":"January","index":0,"n_rows":35,"n_cols":43,"rows_kept":35,"cut":false,"hidden":false,"merged":[[5,6,5,8],[6,3,6,42],[11,7,11,12],[8,7,8,31],[9,7,9,31],[10,7,10,31],[14,3,15,3],[14,4,15,4],[30,32,30,41],[33,32,33,41],[34,32,34,41],[30,17,30,26],[33,17,33,26],[34,17,34,26]]}
[]
[null,null,null,null,null,null,null,null,"File Name",null,null,null,{"$f":"CONCATENATE(CalendarYear,\".\",F6,\".\",VLOOKUP(H10,'BD1'!B16:D35,3,FALSE),\".\",H10)","v":{"$error":"#N/A"}}]
[null,null,null,null,null,null,null,null,"Sheet Name",null,null,null,{"$f":"CONCATENATE(E6,\".\",CalendarYear)","v":"January.2021"}]
[null,null,null,"Beginning of the week","SUN"]
[null,null,null,"Year",2021]
[null,null,null,"Month","January",{"$f":"VLOOKUP(E6,'BD1'!B2:C13,2,FALSE)","v":"01"}]
[null,null,null,"TIMESHEET"]
[]
[null,null,null,null,null,null,"DEPARTMENT/SERVICE: "]
[null,null,null,null,null,null,"NAME:"]
[null,null,null,null,null,null,"CATEGORY:"]
[null,null,null,null,null,null,"MONHT/YEAR:",{"$f":"CONCATENATE(E6,\"/\",CalendarYear)","v":"January/2021"}]
[]
[null,null,null,null,null,{"$f":"AND(MONTH(F16)=MONTH($G$6),COUNTIF(feriados,F16)>0)","v":false},false,false,false,false,true,false,false,false,false,false,false,false,false,false,false,false,false,false,false,false,false,false,false,false,false,false,false,false,false,false,false,false,false,false,false,false]
[null,null,null,"Project ","Tasks","Sun","Mon","Tue","Wed","Thu","Fri","Sat","Sun","Mon","Tue","Wed","Thu","Fri","Sat","Sun","Mon","Tue","Wed","Thu","Fri","Sat","Sun","Mon","Tue","Wed","Thu","Fri","Sat","Sun","Mon","Tue","Wed","Thu","Fri","Sat","Sun","Mon","TOTAL "]
[null,null,null,null,null,{"$f":"DaysAndWeeks+DATE(CalendarYear,F6,1)-WEEKDAY(DATE(CalendarYear,F6,1),(WeekStart=\"Mon\")+1)+1","v":"2020-12-27"},"2020-12-28","2020-12-29","2020-12-30","2020-12-31","2021-01-01","2021-01-02",{"$f":"DaysAndWeeks+DATE(CalendarYear,F6,1)-WEEKDAY(DATE(CalendarYear,F6,1),(WeekStart=\"Mon\")+1)+8","v":"2021-01-03"},"2021-01-04","2021-01-05","2021-01-06","2021-01-07","2021-01-08","2021-01-09",{"$f":"DaysAndWeeks+DATE(CalendarYear,F6,1)-WEEKDAY(DATE(CalendarYear,F6,1),(WeekStart=\"Mon\")+1)+15","v":"2021-01-10"},"2021-01-11","2021-01-12","2021-01-13","2021-01-14","2021-01-15","2021-01-16",{"$f":"DaysAndWeeks+DATE(CalendarYear,F6,1)-WEEKDAY(DATE(CalendarYear,F6,1),(WeekStart=\"Mon\")+1)+22","v":"2021-01-17"},"2021-01-18","2021-01-19","2021-01-20","2021-01-21","2021-01-22","2021-01-23",{"$f":"DaysAndWeeks+DATE(CalendarYear,F6,1)-WEEKDAY(DATE(CalendarYear,F6,1),(WeekStart=\"Mon\")+1)+29","v":"2021-01-24"},"2021-01-25","2021-01-26","2021-01-27","2021-01-28","2021-01-29","2021-01-30",{"$f":"DaysAndWeeks+DATE(CalendarYear,F6,1)-WEEKDAY(DATE(CalendarYear,F6,1),(WeekStart=\"Mon\")+1)+36","v":"2021-01-31"},"2021-02-01","HOURS"]
[null,null,null,null,null,null,null,null,null,null,null,null,null,null,null,null,null,null,null,null,null,null,null,null,null,null,null,null,null,null,null,null,null,null,null,null,null,null,null,null,null,null,{"$f":"SUM(K17:AO17)","v":0}]
[null,null,null,null,null,null,null,null,null,null,null,null,null,null,null,null,null,null,null,null,null,null,null,null,null,null,null,null,null,null,null,null,null,null,null,null,null,null,null,null,null,null,{"$f":"SUM(K18:AO18)","v":0}]
[null,null,null,null,null,null,null,null,null,null,null,null,null,null,null,null,null,null,null,null,null,null,null,null,null,null,null,null,null,null,null,null,null,null,null,null,null,null,null,null,null,null,0]
[null,null,null,null,null,null,null,null,null,null,null,null,null,null,null,null,null,null,null,null,null,null,null,null,null,null,null,null,null,null,null,null,null,null,null,null,null,null,null,null,null,null,0]
[null,null,null,null,null,null,null,null,null,null,null,null,null,null,null,null,null,null,null,null,null,null,null,null,null,null,null,null,null,null,null,null,null,null,null,null,null,null,null,null,null,null,0]
[null,null,null,null,null,null,null,null,null,null,null,null,null,null,null,null,null,null,null,null,null,null,null,null,null,null,null,null,null,null,null,null,null,null,null,null,null,null,null,null,null,null,0]
[null,null,null,null,null,null,null,null,null,null,null,null,null,null,null,null,null,null,null,null,null,null,null,null,null,null,null,null,null,null,null,null,null,null,null,null,null,null,null,null,null,null,0]
[{"$f":"IF(OR($H$10=\"\",D24=\"\"),\"\",$H$10)","v":""},{"$f":"IF(OR(CalendarYear=\"\",D24=\"\"),\"\",CalendarYear)","v":""},{"$f":"IF(OR($E$6=\"\",D24=\"\"),\"\",$E$6)","v":""},null,null,null,null,null,null,null,null,null,null,null,null,null,null,null,null,null,null,null,null,null,null,null,null,null,null,null,null,null,null,null,null,null,null,null,null,null,null,null,0]
["","","",null,null,null,null,null,null,null,null,null,null,null,null,null,null,null,null,null,null,null,null,null,null,null,null,null,null,null,null,null,null,null,null,null,null,null,null,null,null,null,0]
["","","",null,null,null,null,null,null,null,null,null,null,null,null,null,null,null,null,null,null,null,null,null,null,null,null,null,null,null,null,null,null,null,null,null,null,null,null,null,null,null,0]
[null,null,null,null,null,{"$f":"SUM(F17:F26)","v":0},0,0,0,0,0,0,0,0,0,0,0,0,0,0,0,0,0,0,0,0,0,0,0,0,0,0,0,0,0,0,0,0,0,0,0,0,{"$f":"SUM(AQ17:AQ26)","v":0}]
[]
[]
[]
[null,null,null,null,null,null,null,null,null,null,null,null,null,null,null,null,null,"Collaborator",null,null,null,null,null,null,null,null,null,null,null,null,null,null,"Supervisor"]
[]
[]
[null,null,null,null,null,null,null,null,null,null,null,null,null,null,null,null,null,"Date",null,null,null,null,null,null,null,null,null,null,null,null,null,null,"Date"]
[null,null,null,null,null,null,null,null,null,null,null,null,null,null,null,null,null,"______/______/______",null,null,null,null,null,null,null,null,null,null,null,null,null,null,"______/______/______"]

{"sheet":"February","index":1,"n_rows":35,"n_cols":43,"rows_kept":35,"cut":false,"hidden":false,"merged":[[11,7,11,12],[5,6,5,8],[6,3,6,42],[8,7,8,31],[9,7,9,31],[10,7,10,31],[14,3,15,3],[14,4,15,4],[34,17,34,26],[34,32,34,41],[30,17,30,26],[30,32,30,41],[33,17,33,26],[33,32,33,41]]}
[]
[null,null,null,null,null,null,null,null,"File Name",null,null,null,{"$f":"CONCATENATE(CalendarYear,\".\",F6,\".\",VLOOKUP(H10,'BD1'!B16:D35,3,FALSE),\".\",H10)","v":{"$error":"#N/A"}}]
[null,null,null,null,null,null,null,null,"Sheet Name",null,null,null,{"$f":"CONCATENATE(E6,\".\",CalendarYear)","v":"February.2021"}]
[null,null,null,"Beginning of the week","SUN"]
[null,null,null,"Year",2021]
[null,null,null,"Month","February",{"$f":"VLOOKUP(E6,'BD1'!B2:C13,2,FALSE)","v":"02"}]
[null,null,null,"TIMESHEET"]
[]
[null,null,null,null,null,null,"DEPARTMENT/SERVICE: "]
[null,null,null,null,null,null,"NAME:"]
[null,null,null,null,null,null,"CATEGORY:"]
[null,null,null,null,null,null,"MONHT/YEAR:",{"$f":"CONCATENATE(E6,\"/\",CalendarYear)","v":"February/2021"}]
[]
[null,null,null,null,null,{"$f":"AND(MONTH(F16)=MONTH($G$6),COUNTIF(feriados,F16)>0)","v":false},false,false,false,false,false,false,false,false,false,false,false,false,false,false,false,false,false,false,false,false,false,false,false,false,false,false,false,false,false,false,false,false,false,false,false,false]
[null,null,null,"Project ","Tasks","Sun","Mon","Tue","Wed","Thu","Fri","Sat","Sun","Mon","Tue","Wed","Thu","Fri","Sat","Sun","Mon","Tue","Wed","Thu","Fri","Sat","Sun","Mon","Tue","Wed","Thu","Fri","Sat","Sun","Mon","Tue","Wed","Thu","Fri","Sat","Sun","Mon","TOTAL "]
[null,null,null,null,null,{"$f":"DaysAndWeeks+DATE(CalendarYear,F6,1)-WEEKDAY(DATE(CalendarYear,F6,1),(WeekStart=\"Mon\")+1)+1","v":"2021-01-31"},"2021-02-01","2021-02-02","2021-02-03","2021-02-04","2021-02-05","2021-02-06",{"$f":"DaysAndWeeks+DATE(CalendarYear,F6,1)-WEEKDAY(DATE(CalendarYear,F6,1),(WeekStart=\"Mon\")+1)+8","v":"2021-02-07"},"2021-02-08","2021-02-09","2021-02-10","2021-02-11","2021-02-12","2021-02-13",{"$f":"DaysAndWeeks+DATE(CalendarYear,F6,1)-WEEKDAY(DATE(CalendarYear,F6,1),(WeekStart=\"Mon\")+1)+15","v":"2021-02-14"},"2021-02-15","2021-02-16","2021-02-17","2021-02-18","2021-02-19","2021-02-20",{"$f":"DaysAndWeeks+DATE(CalendarYear,F6,1)-WEEKDAY(DATE(CalendarYear,F6,1),(WeekStart=\"Mon\")+1)+22","v":"2021-02-21"},"2021-02-22","2021-02-23","2021-02-24","2021-02-25","2021-02-26","2021-02-27",{"$f":"DaysAndWeeks+DATE(CalendarYear,F6,1)-WEEKDAY(DATE(CalendarYear,F6,1),(WeekStart=\"Mon\")+1)+29","v":"2021-02-28"},"2021-03-01","2021-03-02","2021-03-03","2021-03-04","2021-03-05","2021-03-06",{"$f":"DaysAndWeeks+DATE(CalendarYear,F6,1)-WEEKDAY(DATE(CalendarYear,F6,1),(WeekStart=\"Mon\")+1)+36","v":"2021-03-07"},"2021-03-08","HOURS"]
[null,null,null,null,null,null,null,null,null,null,null,null,null,null,null,null,null,null,null,null,null,null,null,null,null,null,null,null,null,null,null,null,null,null,null,null,null,null,null,null,null,null,{"$f":"SUM(G17:AH17)","v":0}]
[null,null,null,null,null,null,null,null,null,null,null,null,null,null,null,null,null,null,null,null,null,null,null,null,null,null,null,null,null,null,null,null,null,null,null,null,null,null,null,null,null,null,{"$f":"SUM(G18:AH18)","v":0}]
[null,null,null,null,null,null,null,null,null,null,null,null,null,null,null,null,null,null,null,null,null,null,null,null,null,null,null,null,null,null,null,null,null,null,null,null,null,null,null,null,null,null,0]
[null,null,null,null,null,null,null,null,null,null,null,null,null,null,null,null,null,null,null,null,null,null,null,null,null,null,null,null,null,null,null,null,null,null,null,null,null,null,null,null,null,null,0]
[null,null,null,null,null,null,null,null,null,null,null,null,null,null,null,null,null,null,null,null,null,null,null,null,null,null,null,null,null,null,null,null,null,null,null,null,null,null,null,null,null,null,0]
[null,null,null,null,null,null,null,null,null,null,null,null,null,null,null,null,null,null,null,null,null,null,null,null,null,null,null,null,null,null,null,null,null,null,null,null,null,null,null,null,null,null,0]
[null,null,null,null,null,null,null,null,null,null,null,null,null,null,null,null,null,null,null,null,null,null,null,null,null,null,null,null,null,null,null,null,null,null,null,null,null,null,null,null,null,null,0]
[{"$f":"IF(OR($H$10=\"\",D24=\"\"),\"\",$H$10)","v":""},{"$f":"IF(OR(CalendarYear=\"\",D24=\"\"),\"\",CalendarYear)","v":""},{"$f":"IF(OR($E$6=\"\",D24=\"\"),\"\",$E$6)","v":""},null,null,null,null,null,null,null,null,null,null,null,null,null,null,null,null,null,null,null,null,null,null,null,null,null,null,null,null,null,null,null,null,null,null,null,null,null,null,null,0]
["","","",null,null,null,null,null,null,null,null,null,null,null,null,null,null,null,null,null,null,null,null,null,null,null,null,null,null,null,null,null,null,null,null,null,null,null,null,null,null,null,0]
["","","",null,null,null,null,null,null,null,null,null,null,null,null,null,null,null,null,null,null,null,null,null,null,null,null,null,null,null,null,null,null,null,null,null,null,null,null,null,null,null,0]
[null,null,null,null,null,{"$f":"SUM(F17:F26)","v":0},0,0,0,0,0,0,0,0,0,0,0,0,0,0,0,0,0,0,0,0,0,0,0,0,0,0,0,0,0,0,0,0,0,0,0,0,{"$f":"SUM(AQ17:AQ26)","v":0}]
[]
[]
[]
[null,null,null,null,null,null,null,null,null,null,null,null,null,null,null,null,null,"Collaborator",null,null,null,null,null,null,null,null,null,null,null,null,null,null,"Supervisor"]
[]
[]
[null,null,null,null,null,null,null,null,null,null,null,null,null,null,null,null,null,"Date",null,null,null,null,null,null,null,null,null,null,null,null,null,null,"Date"]
[null,null,null,null,null,null,null,null,null,null,null,null,null,null,null,null,null,"______/______/______",null,null,null,null,null,null,null,null,null,null,null,null,null,null,"______/______/______"]

{"sheet":"March","index":2,"n_rows":35,"n_cols":43,"rows_kept":35,"cut":false,"hidden":false,"merged":[[11,7,11,12],[5,6,5,8],[6,3,6,42],[8,7,8,31],[9,7,9,31],[10,7,10,31],[34,17,34,26],[34,32,34,41],[14,3,15,3],[14,4,15,4],[30,17,30,26],[30,32,30,41],[33,17,33,26],[33,32,33,41]]}
[]
[null,null,null,null,null,null,null,null,"File Name",null,null,null,{"$f":"CONCATENATE(CalendarYear,\".\",F6,\".\",VLOOKUP(H10,'BD1'!B16:D35,3,FALSE),\".\",H10)","v":{"$error":"#N/A"}}]
[null,null,null,null,null,null,null,null,"Sheet Name",null,null,null,{"$f":"CONCATENATE(E6,\".\",CalendarYear)","v":"March.2021"}]
[null,null,null,"Beginning of the week","SUN"]
[null,null,null,"Year",2021]
[null,null,null,"Month","March",{"$f":"VLOOKUP(E6,'BD1'!B2:C13,2,FALSE)","v":"03"}]
[null,null,null,"TIMESHEET"]
[]
[null,null,null,null,null,null,"DEPARTMENT/SERVICE: "]
[null,null,null,null,null,null,"NAME:"]
[null,null,null,null,null,null,"CATEGORY:"]
[null,null,null,null,null,null,"MONHT/YEAR:",{"$f":"CONCATENATE(E6,\"/\",CalendarYear)","v":"March/2021"}]
[]
[null,null,null,null,null,{"$f":"AND(MONTH(F16)=MONTH($G$6),COUNTIF(feriados,F16)>0)","v":false},false,false,false,false,false,false,false,false,false,false,false,false,false,false,false,false,false,false,false,false,false,false,false,false,false,false,false,false,false,false,false,false,false,false,false,false]
[null,null,null,"Project ","Tasks","Sun","Mon","Tue","Wed","Thu","Fri","Sat","Sun","Mon","Tue","Wed","Thu","Fri","Sat","Sun","Mon","Tue","Wed","Thu","Fri","Sat","Sun","Mon","Tue","Wed","Thu","Fri","Sat","Sun","Mon","Tue","Wed","Thu","Fri","Sat","Sun","Mon","TOTAL "]
[null,null,null,null,null,{"$f":"DaysAndWeeks+DATE(CalendarYear,F6,1)-WEEKDAY(DATE(CalendarYear,F6,1),(WeekStart=\"Mon\")+1)+1","v":"2021-02-28"},"2021-03-01","2021-03-02","2021-03-03","2021-03-04","2021-03-05","2021-03-06",{"$f":"DaysAndWeeks+DATE(CalendarYear,F6,1)-WEEKDAY(DATE(CalendarYear,F6,1),(WeekStart=\"Mon\")+1)+8","v":"2021-03-07"},"2021-03-08","2021-03-09","2021-03-10","2021-03-11","2021-03-12","2021-03-13",{"$f":"DaysAndWeeks+DATE(CalendarYear,F6,1)-WEEKDAY(DATE(CalendarYear,F6,1),(WeekStart=\"Mon\")+1)+15","v":"2021-03-14"},"2021-03-15","2021-03-16","2021-03-17","2021-03-18","2021-03-19","2021-03-20",{"$f":"DaysAndWeeks+DATE(CalendarYear,F6,1)-WEEKDAY(DATE(CalendarYear,F6,1),(WeekStart=\"Mon\")+1)+22","v":"2021-03-21"},"2021-03-22","2021-03-23","2021-03-24","2021-03-25","2021-03-26","2021-03-27",{"$f":"DaysAndWeeks+DATE(CalendarYear,F6,1)-WEEKDAY(DATE(CalendarYear,F6,1),(WeekStart=\"Mon\")+1)+29","v":"2021-03-28"},"2021-03-29","2021-03-30","2021-03-31","2021-04-01","2021-04-02","2021-04-03",{"$f":"DaysAndWeeks+DATE(CalendarYear,F6,1)-WEEKDAY(DATE(CalendarYear,F6,1),(WeekStart=\"Mon\")+1)+36","v":"2021-04-04"},"2021-04-05","HOURS"]
[null,null,null,null,null,null,null,null,null,null,null,null,null,null,null,null,null,null,null,null,null,null,null,null,null,null,null,null,null,null,null,null,null,null,null,null,null,null,null,null,null,null,{"$f":"SUM(G17:AK17)","v":0}]
[null,null,null,null,null,null,null,null,null,null,null,null,null,null,null,null,null,null,null,null,null,null,null,null,null,null,null,null,null,null,null,null,null,null,null,null,null,null,null,null,null,null,{"$f":"SUM(G18:AK18)","v":0}]
[null,null,null,null,null,null,null,null,null,null,null,null,null,null,null,null,null,null,null,null,null,null,null,null,null,null,null,null,null,null,null,null,null,null,null,null,null,null,null,null,null,null,0]
[null,null,null,null,null,null,null,null,null,null,null,null,null,null,null,null,null,null,null,null,null,null,null,null,null,null,null,null,null,null,null,null,null,null,null,null,null,null,null,null,null,null,0]
[null,null,null,null,null,null,null,null,null,null,null,null,null,null,null,null,null,null,null,null,null,null,null,null,null,null,null,null,null,null,null,null,null,null,null,null,null,null,null,null,null,null,0]
[null,null,null,null,null,null,null,null,null,null,null,null,null,null,null,null,null,null,null,null,null,null,null,null,null,null,null,null,null,null,null,null,null,null,null,null,null,null,null,null,null,null,0]
[null,null,null,null,null,null,null,null,null,null,null,null,null,null,null,null,null,null,null,null,null,null,null,null,null,null,null,null,null,null,null,null,null,null,null,null,null,null,null,null,null,null,0]
[{"$f":"IF(OR($H$10=\"\",D24=\"\"),\"\",$H$10)","v":""},{"$f":"IF(OR(CalendarYear=\"\",D24=\"\"),\"\",CalendarYear)","v":""},{"$f":"IF(OR($E$6=\"\",D24=\"\"),\"\",$E$6)","v":""},null,null,null,null,null,null,null,null,null,null,null,null,null,null,null,null,null,null,null,null,null,null,null,null,null,null,null,null,null,null,null,null,null,null,null,null,null,null,null,0]
["","","",null,null,null,null,null,null,null,null,null,null,null,null,null,null,null,null,null,null,null,null,null,null,null,null,null,null,null,null,null,null,null,null,null,null,null,null,null,null,null,0]
["","","",null,null,null,null,null,null,null,null,null,null,null,null,null,null,null,null,null,null,null,null,null,null,null,null,null,null,null,null,null,null,null,null,null,null,null,null,null,null,null,0]
[null,null,null,null,null,{"$f":"SUM(F17:F26)","v":0},0,0,0,0,0,0,0,0,0,0,0,0,0,0,0,0,0,0,0,0,0,0,0,0,0,0,0,0,0,0,0,0,0,0,0,0,{"$f":"SUM(AQ17:AQ26)","v":0}]
[]
[]
[]
[null,null,null,null,null,null,null,null,null,null,null,null,null,null,null,null,null,"Collaborator",null,null,null,null,null,null,null,null,null,null,null,null,null,null,"Supervisor"]
[]
[]
[null,null,null,null,null,null,null,null,null,null,null,null,null,null,null,null,null,"Date",null,null,null,null,null,null,null,null,null,null,null,null,null,null,"Date"]
[null,null,null,null,null,null,null,null,null,null,null,null,null,null,null,null,null,"______/______/______",null,null,null,null,null,null,null,null,null,null,null,null,null,null,"______/______/______"]

{"sheet":"April","index":3,"n_rows":35,"n_cols":43,"rows_kept":35,"cut":false,"hidden":false,"merged":[[11,7,11,12],[5,6,5,8],[6,3,6,42],[8,7,8,31],[9,7,9,31],[10,7,10,31],[14,3,15,3],[14,4,15,4],[34,17,34,26],[34,32,34,41],[30,17,30,26],[30,32,30,41],[33,17,33,26],[33,32,33,41]]}
[]
[null,null,null,null,null,null,null,null,"File Name",null,null,null,{"$f":"CONCATENATE(CalendarYear,\".\",F6,\".\",VLOOKUP(H10,'BD1'!B16:D35,3,FALSE),\".\",H10)","v":{"$error":"#N/A"}}]
[null,null,null,null,null,null,null,null,"Sheet Name",null,null,null,{"$f":"CONCATENATE(E6,\".\",CalendarYear)","v":"April.2021"}]
[null,null,null,"Beginning of the week","SUN"]
[null,null,null,"Year",2021]
[null,null,null,"Month","April",{"$f":"VLOOKUP(E6,'BD1'!B2:C13,2,FALSE)","v":"04"}]
[null,null,null,"TIMESHEET"]
[]
[null,null,null,null,null,null,"DEPARTMENT/SERVICE: "]
[null,null,null,null,null,null,"NAME:"]
[null,null,null,null,null,null,"CATEGORY:"]
[null,null,null,null,null,null,"MONHT/YEAR:",{"$f":"CONCATENATE(E6,\"/\",CalendarYear)","v":"April/2021"}]
[]
[null,null,null,null,null,{"$f":"AND(MONTH(F16)=MONTH($G$6),COUNTIF(feriados,F16)>0)","v":false},false,false,false,false,false,false,false,false,false,false,false,false,false,false,false,false,false,false,false,false,false,false,false,false,false,false,false,false,false,false,false,false,false,false,false,false]
[null,null,null,"Project ","Tasks","Sun","Mon","Tue","Wed","Thu","Fri","Sat","Sun","Mon","Tue","Wed","Thu","Fri","Sat","Sun","Mon","Tue","Wed","Thu","Fri","Sat","Sun","Mon","Tue","Wed","Thu","Fri","Sat","Sun","Mon","Tue","Wed","Thu","Fri","Sat","Sun","Mon","TOTAL "]
[null,null,null,null,null,{"$f":"DaysAndWeeks+DATE(CalendarYear,F6,1)-WEEKDAY(DATE(CalendarYear,F6,1),(WeekStart=\"Mon\")+1)+1","v":"2021-03-28"},"2021-03-29","2021-03-30","2021-03-31","2021-04-01","2021-04-02","2021-04-03",{"$f":"DaysAndWeeks+DATE(CalendarYear,F6,1)-WEEKDAY(DATE(CalendarYear,F6,1),(WeekStart=\"Mon\")+1)+8","v":"2021-04-04"},"2021-04-05","2021-04-06","2021-04-07","2021-04-08","2021-04-09","2021-04-10",{"$f":"DaysAndWeeks+DATE(CalendarYear,F6,1)-WEEKDAY(DATE(CalendarYear,F6,1),(WeekStart=\"Mon\")+1)+15","v":"2021-04-11"},"2021-04-12","2021-04-13","2021-04-14","2021-04-15","2021-04-16","2021-04-17",{"$f":"DaysAndWeeks+DATE(CalendarYear,F6,1)-WEEKDAY(DATE(CalendarYear,F6,1),(WeekStart=\"Mon\")+1)+22","v":"2021-04-18"},"2021-04-19","2021-04-20","2021-04-21","2021-04-22","2021-04-23","2021-04-24",{"$f":"DaysAndWeeks+DATE(CalendarYear,F6,1)-WEEKDAY(DATE(CalendarYear,F6,1),(WeekStart=\"Mon\")+1)+29","v":"2021-04-25"},"2021-04-26","2021-04-27","2021-04-28","2021-04-29","2021-04-30","2021-05-01",{"$f":"DaysAndWeeks+DATE(CalendarYear,F6,1)-WEEKDAY(DATE(CalendarYear,F6,1),(WeekStart=\"Mon\")+1)+36","v":"2021-05-02"},"2021-05-03","HOURS"]
[null,null,null,null,null,null,null,null,null,null,null,null,null,null,null,null,null,null,null,null,null,null,null,null,null,null,null,null,null,null,null,null,null,null,null,null,null,null,null,null,null,null,{"$f":"SUM(J17:AM17)","v":0}]
[null,null,null,null,null,null,null,null,null,null,null,null,null,null,null,null,null,null,null,null,null,null,null,null,null,null,null,null,null,null,null,null,null,null,null,null,null,null,null,null,null,null,{"$f":"SUM(J18:AM18)","v":0}]
[null,null,null,null,null,null,null,null,null,null,null,null,null,null,null,null,null,null,null,null,null,null,null,null,null,null,null,null,null,null,null,null,null,null,null,null,null,null,null,null,null,null,0]
[null,null,null,null,null,null,null,null,null,null,null,null,null,null,null,null,null,null,null,null,null,null,null,null,null,null,null,null,null,null,null,null,null,null,null,null,null,null,null,null,null,null,0]
[null,null,null,null,null,null,null,null,null,null,null,null,null,null,null,null,null,null,null,null,null,null,null,null,null,null,null,null,null,null,null,null,null,null,null,null,null,null,null,null,null,null,0]
[null,null,null,null,null,null,null,null,null,null,null,null,null,null,null,null,null,null,null,null,null,null,null,null,null,null,null,null,null,null,null,null,null,null,null,null,null,null,null,null,null,null,0]
[null,null,null,null,null,null,null,null,null,null,null,null,null,null,null,null,null,null,null,null,null,null,null,null,null,null,null,null,null,null,null,null,null,null,null,null,null,null,null,null,null,null,0]
[{"$f":"IF(OR($H$10=\"\",D24=\"\"),\"\",$H$10)","v":""},{"$f":"IF(OR(CalendarYear=\"\",D24=\"\"),\"\",CalendarYear)","v":""},{"$f":"IF(OR($E$6=\"\",D24=\"\"),\"\",$E$6)","v":""},null,null,null,null,null,null,null,null,null,null,null,null,null,null,null,null,null,null,null,null,null,null,null,null,null,null,null,null,null,null,null,null,null,null,null,null,null,null,null,0]
["","","",null,null,null,null,null,null,null,null,null,null,null,null,null,null,null,null,null,null,null,null,null,null,null,null,null,null,null,null,null,null,null,null,null,null,null,null,null,null,null,0]
["","","",null,null,null,null,null,null,null,null,null,null,null,null,null,null,null,null,null,null,null,null,null,null,null,null,null,null,null,null,null,null,null,null,null,null,null,null,null,null,null,0]
[null,null,null,null,null,{"$f":"SUM(F17:F26)","v":0},0,0,0,0,0,0,0,0,0,0,0,0,0,0,0,0,0,0,0,0,0,0,0,0,0,0,0,0,0,0,0,0,0,0,0,0,{"$f":"SUM(AQ17:AQ26)","v":0}]
[]
[]
[]
[null,null,null,null,null,null,null,null,null,null,null,null,null,null,null,null,null,"Collaborator",null,null,null,null,null,null,null,null,null,null,null,null,null,null,"Supervisor"]
[]
[]
[null,null,null,null,null,null,null,null,null,null,null,null,null,null,null,null,null,"Date",null,null,null,null,null,null,null,null,null,null,null,null,null,null,"Date"]
[null,null,null,null,null,null,null,null,null,null,null,null,null,null,null,null,null,"______/______/______",null,null,null,null,null,null,null,null,null,null,null,null,null,null,"______/______/______"]

{"sheet":"May","index":4,"n_rows":35,"n_cols":43,"rows_kept":35,"cut":false,"hidden":false,"merged":[[11,7,11,12],[5,6,5,8],[6,3,6,42],[8,7,8,31],[9,7,9,31],[10,7,10,31],[34,17,34,26],[34,32,34,41],[14,3,15,3],[14,4,15,4],[30,17,30,26],[30,32,30,41],[33,17,33,26],[33,32,33,41]]}
[]
[null,null,null,null,null,null,null,null,"File Name",null,null,null,{"$f":"CONCATENATE(CalendarYear,\".\",F6,\".\",VLOOKUP(H10,'BD1'!B16:D35,3,FALSE),\".\",H10)","v":{"$error":"#N/A"}}]
[null,null,null,null,null,null,null,null,"Sheet Name",null,null,null,{"$f":"CONCATENATE(E6,\".\",CalendarYear)","v":"May.2021"}]
[null,null,null,"Beginning of the week","SUN"]
[null,null,null,"Year",2021]
[null,null,null,"Month","May",{"$f":"VLOOKUP(E6,'BD1'!B2:C13,2,FALSE)","v":"05"}]
[null,null,null,"TIMESHEET"]
[]
[null,null,null,null,null,null,"DEPARTMENT/SERVICE: "]
[null,null,null,null,null,null,"NAME:"]
[null,null,null,null,null,null,"CATEGORY:"]
[null,null,null,null,null,null,"MONHT/YEAR:",{"$f":"CONCATENATE(E6,\"/\",CalendarYear)","v":"May/2021"}]
[]
[null,null,null,null,null,{"$f":"AND(MONTH(F16)=MONTH($G$6),COUNTIF(feriados,F16)>0)","v":false},false,false,false,false,false,false,false,false,false,false,false,false,false,false,false,false,false,false,false,false,false,false,false,false,false,false,false,false,false,false,false,false,false,false,false,false]
[null,null,null,"Project ","Tasks","Sun","Mon","Tue","Wed","Thu","Fri","Sat","Sun","Mon","Tue","Wed","Thu","Fri","Sat","Sun","Mon","Tue","Wed","Thu","Fri","Sat","Sun","Mon","Tue","Wed","Thu","Fri","Sat","Sun","Mon","Tue","Wed","Thu","Fri","Sat","Sun","Mon","TOTAL "]
[null,null,null,null,null,{"$f":"DaysAndWeeks+DATE(CalendarYear,F6,1)-WEEKDAY(DATE(CalendarYear,F6,1),(WeekStart=\"Mon\")+1)+1","v":"2021-04-25"},"2021-04-26","2021-04-27","2021-04-28","2021-04-29","2021-04-30","2021-05-01",{"$f":"DaysAndWeeks+DATE(CalendarYear,F6,1)-WEEKDAY(DATE(CalendarYear,F6,1),(WeekStart=\"Mon\")+1)+8","v":"2021-05-02"},"2021-05-03","2021-05-04","2021-05-05","2021-05-06","2021-05-07","2021-05-08",{"$f":"DaysAndWeeks+DATE(CalendarYear,F6,1)-WEEKDAY(DATE(CalendarYear,F6,1),(WeekStart=\"Mon\")+1)+15","v":"2021-05-09"},"2021-05-10","2021-05-11","2021-05-12","2021-05-13","2021-05-14","2021-05-15",{"$f":"DaysAndWeeks+DATE(CalendarYear,F6,1)-WEEKDAY(DATE(CalendarYear,F6,1),(WeekStart=\"Mon\")+1)+22","v":"2021-05-16"},"2021-05-17","2021-05-18","2021-05-19","2021-05-20","2021-05-21","2021-05-22",{"$f":"DaysAndWeeks+DATE(CalendarYear,F6,1)-WEEKDAY(DATE(CalendarYear,F6,1),(WeekStart=\"Mon\")+1)+29","v":"2021-05-23"},"2021-05-24","2021-05-25","2021-05-26","2021-05-27","2021-05-28","2021-05-29",{"$f":"DaysAndWeeks+DATE(CalendarYear,F6,1)-WEEKDAY(DATE(CalendarYear,F6,1),(WeekStart=\"Mon\")+1)+36","v":"2021-05-30"},"2021-05-31","HOURS"]
[null,null,null,null,null,null,null,null,null,null,null,null,null,null,null,null,null,null,null,null,null,null,null,null,null,null,null,null,null,null,null,null,null,null,null,null,null,null,null,null,null,null,{"$f":"SUM(L17:AP17)","v":0}]
[null,null,null,null,null,null,null,null,null,null,null,null,null,null,null,null,null,null,null,null,null,null,null,null,null,null,null,null,null,null,null,null,null,null,null,null,null,null,null,null,null,null,{"$f":"SUM(L18:AP18)","v":0}]
[null,null,null,null,null,null,null,null,null,null,null,null,null,null,null,null,null,null,null,null,null,null,null,null,null,null,null,null,null,null,null,null,null,null,null,null,null,null,null,null,null,null,0]
[null,null,null,null,null,null,null,null,null,null,null,null,null,null,null,null,null,null,null,null,null,null,null,null,null,null,null,null,null,null,null,null,null,null,null,null,null,null,null,null,null,null,0]
[null,null,null,null,null,null,null,null,null,null,null,null,null,null,null,null,null,null,null,null,null,null,null,null,null,null,null,null,null,null,null,null,null,null,null,null,null,null,null,null,null,null,0]
[null,null,null,null,null,null,null,null,null,null,null,null,null,null,null,null,null,null,null,null,null,null,null,null,null,null,null,null,null,null,null,null,null,null,null,null,null,null,null,null,null,null,0]
[null,null,null,null,null,null,null,null,null,null,null,null,null,null,null,null,null,null,null,null,null,null,null,null,null,null,null,null,null,null,null,null,null,null,null,null,null,null,null,null,null,null,0]
[{"$f":"IF(OR($H$10=\"\",D24=\"\"),\"\",$H$10)","v":""},{"$f":"IF(OR(CalendarYear=\"\",D24=\"\"),\"\",CalendarYear)","v":""},{"$f":"IF(OR($E$6=\"\",D24=\"\"),\"\",$E$6)","v":""},null,null,null,null,null,null,null,null,null,null,null,null,null,null,null,null,null,null,null,null,null,null,null,null,null,null,null,null,null,null,null,null,null,null,null,null,null,null,null,0]
["","","",null,null,null,null,null,null,null,null,null,null,null,null,null,null,null,null,null,null,null,null,null,null,null,null,null,null,null,null,null,null,null,null,null,null,null,null,null,null,null,0]
["","","",null,null,null,null,null,null,null,null,null,null,null,null,null,null,null,null,null,null,null,null,null,null,null,null,null,null,null,null,null,null,null,null,null,null,null,null,null,null,null,0]
[null,null,null,null,null,{"$f":"SUM(F17:F26)","v":0},0,0,0,0,0,0,0,0,0,0,0,0,0,0,0,0,0,0,0,0,0,0,0,0,0,0,0,0,0,0,0,0,0,0,0,0,{"$f":"SUM(AQ17:AQ26)","v":0}]
[]
[]
[]
[null,null,null,null,null,null,null,null,null,null,null,null,null,null,null,null,null,"Collaborator",null,null,null,null,null,null,null,null,null,null,null,null,null,null,"Supervisor"]
[]
[]
[null,null,null,null,null,null,null,null,null,null,null,null,null,null,null,null,null,"Date",null,null,null,null,null,null,null,null,null,null,null,null,null,null,"Date"]
[null,null,null,null,null,null,null,null,null,null,null,null,null,null,null,null,null,"______/______/______",null,null,null,null,null,null,null,null,null,null,null,null,null,null,"______/______/______"]

{"sheet":"June","index":5,"n_rows":35,"n_cols":43,"rows_kept":35,"cut":false,"hidden":false,"merged":[[11,7,11,12],[5,6,5,8],[6,3,6,42],[8,7,8,31],[9,7,9,31],[10,7,10,31],[34,17,34,26],[34,32,34,41],[14,3,15,3],[14,4,15,4],[30,17,30,26],[30,32,30,41],[33,17,33,26],[33,32,33,41]]}
[]
[null,null,null,null,null,null,null,null,"File Name",null,null,null,{"$f":"CONCATENATE(CalendarYear,\".\",F6,\".\",VLOOKUP(H10,'BD1'!B16:D35,3,FALSE),\".\",H10)","v":{"$error":"#N/A"}}]
[null,null,null,null,null,null,null,null,"Sheet Name",null,null,null,{"$f":"CONCATENATE(E6,\".\",CalendarYear)","v":"June.2021"}]
[null,null,null,"Beginning of the week","SUN"]
[null,null,null,"Year",2021]
[null,null,null,"Month","June",{"$f":"VLOOKUP(E6,'BD1'!B2:C13,2,FALSE)","v":"06"}]
[null,null,null,"TIMESHEET"]
[]
[null,null,null,null,null,null,"DEPARTMENT/SERVICE: "]
[null,null,null,null,null,null,"NAME:"]
[null,null,null,null,null,null,"CATEGORY:"]
[null,null,null,null,null,null,"MONHT/YEAR:",{"$f":"CONCATENATE(E6,\"/\",CalendarYear)","v":"June/2021"}]
[]
[null,null,null,null,null,{"$f":"AND(MONTH(F16)=MONTH($G$6),COUNTIF(feriados,F16)>0)","v":false},false,false,false,false,false,false,false,false,false,false,false,false,false,false,false,false,false,false,false,false,false,false,false,false,false,false,false,false,false,false,false,false,false,false,false,false]
[null,null,null,"Project ","Tasks","Sun","Mon","Tue","Wed","Thu","Fri","Sat","Sun","Mon","Tue","Wed","Thu","Fri","Sat","Sun","Mon","Tue","Wed","Thu","Fri","Sat","Sun","Mon","Tue","Wed","Thu","Fri","Sat","Sun","Mon","Tue","Wed","Thu","Fri","Sat","Sun","Mon","TOTAL "]
[null,null,null,null,null,{"$f":"DaysAndWeeks+DATE(CalendarYear,F6,1)-WEEKDAY(DATE(CalendarYear,F6,1),(WeekStart=\"Mon\")+1)+1","v":"2021-05-30"},"2021-05-31","2021-06-01","2021-06-02","2021-06-03","2021-06-04","2021-06-05",{"$f":"DaysAndWeeks+DATE(CalendarYear,F6,1)-WEEKDAY(DATE(CalendarYear,F6,1),(WeekStart=\"Mon\")+1)+8","v":"2021-06-06"},"2021-06-07","2021-06-08","2021-06-09","2021-06-10","2021-06-11","2021-06-12",{"$f":"DaysAndWeeks+DATE(CalendarYear,F6,1)-WEEKDAY(DATE(CalendarYear,F6,1),(WeekStart=\"Mon\")+1)+15","v":"2021-06-13"},"2021-06-14","2021-06-15","2021-06-16","2021-06-17","2021-06-18","2021-06-19",{"$f":"DaysAndWeeks+DATE(CalendarYear,F6,1)-WEEKDAY(DATE(CalendarYear,F6,1),(WeekStart=\"Mon\")+1)+22","v":"2021-06-20"},"2021-06-21","2021-06-22","2021-06-23","2021-06-24","2021-06-25","2021-06-26",{"$f":"DaysAndWeeks+DATE(CalendarYear,F6,1)-WEEKDAY(DATE(CalendarYear,F6,1),(WeekStart=\"Mon\")+1)+29","v":"2021-06-27"},"2021-06-28","2021-06-29","2021-06-30","2021-07-01","2021-07-02","2021-07-03",{"$f":"DaysAndWeeks+DATE(CalendarYear,F6,1)-WEEKDAY(DATE(CalendarYear,F6,1),(WeekStart=\"Mon\")+1)+36","v":"2021-07-04"},"2021-07-05","HOURS"]
[null,null,null,null,null,null,null,null,null,null,null,null,null,null,null,null,null,null,null,null,null,null,null,null,null,null,null,null,null,null,null,null,null,null,null,null,null,null,null,null,null,null,{"$f":"SUM(H17:AK17)","v":0}]
[null,null,null,null,null,null,null,null,null,null,null,null,null,null,null,null,null,null,null,null,null,null,null,null,null,null,null,null,null,null,null,null,null,null,null,null,null,null,null,null,null,null,{"$f":"SUM(H18:AK18)","v":0}]
[null,null,null,null,null,null,null,null,null,null,null,null,null,null,null,null,null,null,null,null,null,null,null,null,null,null,null,null,null,null,null,null,null,null,null,null,null,null,null,null,null,null,0]
[null,null,null,null,null,null,null,null,null,null,null,null,null,null,null,null,null,null,null,null,null,null,null,null,null,null,null,null,null,null,null,null,null,null,null,null,null,null,null,null,null,null,0]
[null,null,null,null,null,null,null,null,null,null,null,null,null,null,null,null,null,null,null,null,null,null,null,null,null,null,null,null,null,null,null,null,null,null,null,null,null,null,null,null,null,null,0]
[null,null,null,null,null,null,null,null,null,null,null,null,null,null,null,null,null,null,null,null,null,null,null,null,null,null,null,null,null,null,null,null,null,null,null,null,null,null,null,null,null,null,0]
[null,null,null,null,null,null,null,null,null,null,null,null,null,null,null,null,null,null,null,null,null,null,null,null,null,null,null,null,null,null,null,null,null,null,null,null,null,null,null,null,null,null,0]
[{"$f":"IF(OR($H$10=\"\",D24=\"\"),\"\",$H$10)","v":""},{"$f":"IF(OR(CalendarYear=\"\",D24=\"\"),\"\",CalendarYear)","v":""},{"$f":"IF(OR($E$6=\"\",D24=\"\"),\"\",$E$6)","v":""},null,null,null,null,null,null,null,null,null,null,null,null,null,null,null,null,null,null,null,null,null,null,null,null,null,null,null,null,null,null,null,null,null,null,null,null,null,null,null,0]
["","","",null,null,null,null,null,null,null,null,null,null,null,null,null,null,null,null,null,null,null,null,null,null,null,null,null,null,null,null,null,null,null,null,null,null,null,null,null,null,null,0]
["","","",null,null,null,null,null,null,null,null,null,null,null,null,null,null,null,null,null,null,null,null,null,null,null,null,null,null,null,null,null,null,null,null,null,null,null,null,null,null,null,0]
[null,null,null,null,null,{"$f":"SUM(F17:F26)","v":0},0,0,0,0,0,0,0,0,0,0,0,0,0,0,0,0,0,0,0,0,0,0,0,0,0,0,0,0,0,0,0,0,0,0,0,0,{"$f":"SUM(AQ17:AQ26)","v":0}]
[]
[]
[]
[null,null,null,null,null,null,null,null,null,null,null,null,null,null,null,null,null,"Collaborator",null,null,null,null,null,null,null,null,null,null,null,null,null,null,"Supervisor"]
[]
[]
[null,null,null,null,null,null,null,null,null,null,null,null,null,null,null,null,null,"Date",null,null,null,null,null,null,null,null,null,null,null,null,null,null,"Date"]
[null,null,null,null,null,null,null,null,null,null,null,null,null,null,null,null,null,"______/______/______",null,null,null,null,null,null,null,null,null,null,null,null,null,null,"______/______/______"]

{"sheet":"July","index":6,"n_rows":35,"n_cols":43,"rows_kept":35,"cut":false,"hidden":false,"merged":[[34,17,34,26],[34,32,34,41],[14,3,15,3],[14,4,15,4],[30,17,30,26],[30,32,30,41],[33,17,33,26],[33,32,33,41],[11,7,11,12],[5,6,5,8],[6,3,6,42],[8,7,8,31],[9,7,9,31],[10,7,10,31]]}
[]
[null,null,null,null,null,null,null,null,"File Name",null,null,null,{"$f":"CONCATENATE(CalendarYear,\".\",F6,\".\",VLOOKUP(H10,'BD1'!B16:D35,3,FALSE),\".\",H10)","v":{"$error":"#N/A"}}]
[null,null,null,null,null,null,null,null,"Sheet Name",null,null,null,{"$f":"CONCATENATE(E6,\".\",CalendarYear)","v":"July.2021"}]
[null,null,null,"Beginning of the week","SUN"]
[null,null,null,"Year",2021]
[null,null,null,"Month","July",{"$f":"VLOOKUP(E6,'BD1'!B2:C13,2,FALSE)","v":"07"}]
[null,null,null,"TIMESHEET"]
[]
[null,null,null,null,null,null,"DEPARTMENT/SERVICE: "]
[null,null,null,null,null,null,"NAME:"]
[null,null,null,null,null,null,"CATEGORY:"]
[null,null,null,null,null,null,"MONHT/YEAR:",{"$f":"CONCATENATE(E6,\"/\",CalendarYear)","v":"July/2021"}]
[]
[null,null,null,null,null,{"$f":"AND(MONTH(F16)=MONTH($G$6),COUNTIF(feriados,F16)>0)","v":false},false,false,false,false,false,false,false,false,false,false,false,false,false,false,false,false,false,false,false,false,false,false,false,false,false,false,false,false,false,false,false,false,false,false,false,false]
[null,null,null,"Project ","Tasks","Sun","Mon","Tue","Wed","Thu","Fri","Sat","Sun","Mon","Tue","Wed","Thu","Fri","Sat","Sun","Mon","Tue","Wed","Thu","Fri","Sat","Sun","Mon","Tue","Wed","Thu","Fri","Sat","Sun","Mon","Tue","Wed","Thu","Fri","Sat","Sun","Mon","TOTAL "]
[null,null,null,null,null,{"$f":"DaysAndWeeks+DATE(CalendarYear,F6,1)-WEEKDAY(DATE(CalendarYear,F6,1),(WeekStart=\"Mon\")+1)+1","v":"2021-06-27"},"2021-06-28","2021-06-29","2021-06-30","2021-07-01","2021-07-02","2021-07-03",{"$f":"DaysAndWeeks+DATE(CalendarYear,F6,1)-WEEKDAY(DATE(CalendarYear,F6,1),(WeekStart=\"Mon\")+1)+8","v":"2021-07-04"},"2021-07-05","2021-07-06","2021-07-07","2021-07-08","2021-07-09","2021-07-10",{"$f":"DaysAndWeeks+DATE(CalendarYear,F6,1)-WEEKDAY(DATE(CalendarYear,F6,1),(WeekStart=\"Mon\")+1)+15","v":"2021-07-11"},"2021-07-12","2021-07-13","2021-07-14","2021-07-15","2021-07-16","2021-07-17",{"$f":"DaysAndWeeks+DATE(CalendarYear,F6,1)-WEEKDAY(DATE(CalendarYear,F6,1),(WeekStart=\"Mon\")+1)+22","v":"2021-07-18"},"2021-07-19","2021-07-20","2021-07-21","2021-07-22","2021-07-23","2021-07-24",{"$f":"DaysAndWeeks+DATE(CalendarYear,F6,1)-WEEKDAY(DATE(CalendarYear,F6,1),(WeekStart=\"Mon\")+1)+29","v":"2021-07-25"},"2021-07-26","2021-07-27","2021-07-28","2021-07-29","2021-07-30","2021-07-31",{"$f":"DaysAndWeeks+DATE(CalendarYear,F6,1)-WEEKDAY(DATE(CalendarYear,F6,1),(WeekStart=\"Mon\")+1)+36","v":"2021-08-01"},"2021-08-02","HOURS"]
[null,null,null,null,null,null,null,null,null,null,null,null,null,null,null,null,null,null,null,null,null,null,null,null,null,null,null,null,null,null,null,null,null,null,null,null,null,null,null,null,null,null,{"$f":"SUM(J17:AN17)","v":0}]
[null,null,null,null,null,null,null,null,null,null,null,null,null,null,null,null,null,null,null,null,null,null,null,null,null,null,null,null,null,null,null,null,null,null,null,null,null,null,null,null,null,null,{"$f":"SUM(J18:AN18)","v":0}]
[null,null,null,null,null,null,null,null,null,null,null,null,null,null,null,null,null,null,null,null,null,null,null,null,null,null,null,null,null,null,null,null,null,null,null,null,null,null,null,null,null,null,0]
[null,null,null,null,null,null,null,null,null,null,null,null,null,null,null,null,null,null,null,null,null,null,null,null,null,null,null,null,null,null,null,null,null,null,null,null,null,null,null,null,null,null,0]
[null,null,null,null,null,null,null,null,null,null,null,null,null,null,null,null,null,null,null,null,null,null,null,null,null,null,null,null,null,null,null,null,null,null,null,null,null,null,null,null,null,null,0]
[null,null,null,null,null,null,null,null,null,null,null,null,null,null,null,null,null,null,null,null,null,null,null,null,null,null,null,null,null,null,null,null,null,null,null,null,null,null,null,null,null,null,0]
[null,null,null,null,null,null,null,null,null,null,null,null,null,null,null,null,null,null,null,null,null,null,null,null,null,null,null,null,null,null,null,null,null,null,null,null,null,null,null,null,null,null,0]
[{"$f":"IF(OR($H$10=\"\",D24=\"\"),\"\",$H$10)","v":""},{"$f":"IF(OR(CalendarYear=\"\",D24=\"\"),\"\",CalendarYear)","v":""},{"$f":"IF(OR($E$6=\"\",D24=\"\"),\"\",$E$6)","v":""},null,null,null,null,null,null,null,null,null,null,null,null,null,null,null,null,null,null,null,null,null,null,null,null,null,null,null,null,null,null,null,null,null,null,null,null,null,null,null,0]
["","","",null,null,null,null,null,null,null,null,null,null,null,null,null,null,null,null,null,null,null,null,null,null,null,null,null,null,null,null,null,null,null,null,null,null,null,null,null,null,null,0]
["","","",null,null,null,null,null,null,null,null,null,null,null,null,null,null,null,null,null,null,null,null,null,null,null,null,null,null,null,null,null,null,null,null,null,null,null,null,null,null,null,0]
[null,null,null,null,null,{"$f":"SUM(F17:F26)","v":0},0,0,0,0,0,0,0,0,0,0,0,0,0,0,0,0,0,0,0,0,0,0,0,0,0,0,0,0,0,0,0,0,0,0,0,0,{"$f":"SUM(AQ17:AQ26)","v":0}]
[]
[]
[]
[null,null,null,null,null,null,null,null,null,null,null,null,null,null,null,null,null,"Collaborator",null,null,null,null,null,null,null,null,null,null,null,null,null,null,"Supervisor"]
[]
[]
[null,null,null,null,null,null,null,null,null,null,null,null,null,null,null,null,null,"Date",null,null,null,null,null,null,null,null,null,null,null,null,null,null,"Date"]
[null,null,null,null,null,null,null,null,null,null,null,null,null,null,null,null,null,"______/______/______",null,null,null,null,null,null,null,null,null,null,null,null,null,null,"______/______/______"]

{"sheet":"Aug","index":7,"n_rows":35,"n_cols":43,"rows_kept":35,"cut":false,"hidden":false,"merged":[[34,17,34,26],[34,32,34,41],[14,3,15,3],[14,4,15,4],[30,17,30,26],[30,32,30,41],[33,17,33,26],[33,32,33,41],[11,7,11,12],[5,6,5,8],[6,3,6,42],[8,7,8,31],[9,7,9,31],[10,7,10,31]]}
[]
[null,null,null,null,null,null,null,null,"File Name",null,null,null,{"$f":"CONCATENATE(CalendarYear,\".\",F6,\".\",VLOOKUP(H10,'BD1'!B16:D35,3,FALSE),\".\",H10)","v":{"$error":"#N/A"}}]
[null,null,null,null,null,null,null,null,"Sheet Name",null,null,null,{"$f":"CONCATENATE(E6,\".\",CalendarYear)","v":"August.2021"}]
[null,null,null,"Beginning of the week","SUN"]
[null,null,null,"Year",2021]
[null,null,null,"Month","August",{"$f":"VLOOKUP(E6,'BD1'!B2:C13,2,FALSE)","v":"08"}]
[null,null,null,"TIMESHEET"]
[]
[null,null,null,null,null,null,"DEPARTMENT/SERVICE: "]
[null,null,null,null,null,null,"NAME:"]
[null,null,null,null,null,null,"CATEGORY:"]
[null,null,null,null,null,null,"MONHT/YEAR:",{"$f":"CONCATENATE(E6,\"/\",CalendarYear)","v":"August/2021"}]
[]
[null,null,null,null,null,{"$f":"AND(MONTH(F16)=MONTH($G$6),COUNTIF(feriados,F16)>0)","v":false},false,false,false,false,false,false,false,false,false,false,false,false,false,false,false,false,false,false,false,false,false,false,false,false,false,false,false,false,false,false,false,false,false,false,false,false]
[null,null,null,"Project ","Tasks","Sun","Mon","Tue","Wed","Thu","Fri","Sat","Sun","Mon","Tue","Wed","Thu","Fri","Sat","Sun","Mon","Tue","Wed","Thu","Fri","Sat","Sun","Mon","Tue","Wed","Thu","Fri","Sat","Sun","Mon","Tue","Wed","Thu","Fri","Sat","Sun","Mon","TOTAL "]
[null,null,null,null,null,{"$f":"DaysAndWeeks+DATE(CalendarYear,F6,1)-WEEKDAY(DATE(CalendarYear,F6,1),(WeekStart=\"Mon\")+1)+1","v":"2021-08-01"},"2021-08-02","2021-08-03","2021-08-04","2021-08-05","2021-08-06","2021-08-07",{"$f":"DaysAndWeeks+DATE(CalendarYear,F6,1)-WEEKDAY(DATE(CalendarYear,F6,1),(WeekStart=\"Mon\")+1)+8","v":"2021-08-08"},"2021-08-09","2021-08-10","2021-08-11","2021-08-12","2021-08-13","2021-08-14",{"$f":"DaysAndWeeks+DATE(CalendarYear,F6,1)-WEEKDAY(DATE(CalendarYear,F6,1),(WeekStart=\"Mon\")+1)+15","v":"2021-08-15"},"2021-08-16","2021-08-17","2021-08-18","2021-08-19","2021-08-20","2021-08-21",{"$f":"DaysAndWeeks+DATE(CalendarYear,F6,1)-WEEKDAY(DATE(CalendarYear,F6,1),(WeekStart=\"Mon\")+1)+22","v":"2021-08-22"},"2021-08-23","2021-08-24","2021-08-25","2021-08-26","2021-08-27","2021-08-28",{"$f":"DaysAndWeeks+DATE(CalendarYear,F6,1)-WEEKDAY(DATE(CalendarYear,F6,1),(WeekStart=\"Mon\")+1)+29","v":"2021-08-29"},"2021-08-30","2021-08-31","2021-09-01","2021-09-02","2021-09-03","2021-09-04",{"$f":"DaysAndWeeks+DATE(CalendarYear,F6,1)-WEEKDAY(DATE(CalendarYear,F6,1),(WeekStart=\"Mon\")+1)+36","v":"2021-09-05"},"2021-09-06","HOURS"]
[null,null,null,null,null,null,null,null,null,null,null,null,null,null,null,null,null,null,null,null,null,null,null,null,null,null,null,null,null,null,null,null,null,null,null,null,null,null,null,null,null,null,{"$f":"SUM(F17:AJ17)","v":0}]
[null,null,null,null,null,null,null,null,null,null,null,null,null,null,null,null,null,null,null,null,null,null,null,null,null,null,null,null,null,null,null,null,null,null,null,null,null,null,null,null,null,null,{"$f":"SUM(F18:AJ18)","v":0}]
[null,null,null,null,null,null,null,null,null,null,null,null,null,null,null,null,null,null,null,null,null,null,null,null,null,null,null,null,null,null,null,null,null,null,null,null,null,null,null,null,null,null,0]
[null,null,null,null,null,null,null,null,null,null,null,null,null,null,null,null,null,null,null,null,null,null,null,null,null,null,null,null,null,null,null,null,null,null,null,null,null,null,null,null,null,null,0]
[null,null,null,null,null,null,null,null,null,null,null,null,null,null,null,null,null,null,null,null,null,null,null,null,null,null,null,null,null,null,null,null,null,null,null,null,null,null,null,null,null,null,0]
[null,null,null,null,null,null,null,null,null,null,null,null,null,null,null,null,null,null,null,null,null,null,null,null,null,null,null,null,null,null,null,null,null,null,null,null,null,null,null,null,null,null,0]
[null,null,null,null,null,null,null,null,null,null,null,null,null,null,null,null,null,null,null,null,null,null,null,null,null,null,null,null,null,null,null,null,null,null,null,null,null,null,null,null,null,null,0]
[{"$f":"IF(OR($H$10=\"\",D24=\"\"),\"\",$H$10)","v":""},{"$f":"IF(OR(CalendarYear=\"\",D24=\"\"),\"\",CalendarYear)","v":""},{"$f":"IF(OR($E$6=\"\",D24=\"\"),\"\",$E$6)","v":""},null,null,null,null,null,null,null,null,null,null,null,null,null,null,null,null,null,null,null,null,null,null,null,null,null,null,null,null,null,null,null,null,null,null,null,null,null,null,null,0]
["","","",null,null,null,null,null,null,null,null,null,null,null,null,null,null,null,null,null,null,null,null,null,null,null,null,null,null,null,null,null,null,null,null,null,null,null,null,null,null,null,0]
["","","",null,null,null,null,null,null,null,null,null,null,null,null,null,null,null,null,null,null,null,null,null,null,null,null,null,null,null,null,null,null,null,null,null,null,null,null,null,null,null,0]
[null,null,null,null,null,{"$f":"SUM(F17:F26)","v":0},0,0,0,0,0,0,0,0,0,0,0,0,0,0,0,0,0,0,0,0,0,0,0,0,0,0,0,0,0,0,0,0,0,0,0,0,{"$f":"SUM(AQ17:AQ26)","v":0}]
[]
[]
[]
[null,null,null,null,null,null,null,null,null,null,null,null,null,null,null,null,null,"Collaborator",null,null,null,null,null,null,null,null,null,null,null,null,null,null,"Supervisor"]
[]
[]
[null,null,null,null,null,null,null,null,null,null,null,null,null,null,null,null,null,"Date",null,null,null,null,null,null,null,null,null,null,null,null,null,null,"Date"]
[null,null,null,null,null,null,null,null,null,null,null,null,null,null,null,null,null,"______/______/______",null,null,null,null,null,null,null,null,null,null,null,null,null,null,"______/______/______"]

{"sheet":"Sep","index":8,"n_rows":35,"n_cols":43,"rows_kept":35,"cut":false,"hidden":false,"merged":[[34,17,34,26],[34,32,34,41],[14,3,15,3],[14,4,15,4],[30,17,30,26],[30,32,30,41],[33,17,33,26],[33,32,33,41],[11,7,11,12],[5,6,5,8],[6,3,6,42],[8,7,8,31],[9,7,9,31],[10,7,10,31]]}
[]
[null,null,null,null,null,null,null,null,"File Name",null,null,null,{"$f":"CONCATENATE(CalendarYear,\".\",F6,\".\",VLOOKUP(H10,'BD1'!B16:D35,3,FALSE),\".\",H10)","v":{"$error":"#N/A"}}]
[null,null,null,null,null,null,null,null,"Sheet Name",null,null,null,{"$f":"CONCATENATE(E6,\".\",CalendarYear)","v":"September.2021"}]
[null,null,null,"Beginning of the week","SUN"]
[null,null,null,"Year",2021]
[null,null,null,"Month","September",{"$f":"VLOOKUP(E6,'BD1'!B2:C13,2,FALSE)","v":"09"}]
[null,null,null,"TIMESHEET"]
[]
[null,null,null,null,null,null,"DEPARTMENT/SERVICE: "]
[null,null,null,null,null,null,"NAME:"]
[null,null,null,null,null,null,"CATEGORY:"]
[null,null,null,null,null,null,"MONHT/YEAR:",{"$f":"CONCATENATE(E6,\"/\",CalendarYear)","v":"September/2021"}]
[]
[null,null,null,null,null,{"$f":"AND(MONTH(F16)=MONTH($G$6),COUNTIF(feriados,F16)>0)","v":false},false,false,false,false,false,false,false,false,false,false,false,false,false,false,false,false,false,false,false,false,false,false,false,false,false,false,false,false,false,false,false,false,false,false,false,false]
[null,null,null,"Project ","Tasks","Sun","Mon","Tue","Wed","Thu","Fri","Sat","Sun","Mon","Tue","Wed","Thu","Fri","Sat","Sun","Mon","Tue","Wed","Thu","Fri","Sat","Sun","Mon","Tue","Wed","Thu","Fri","Sat","Sun","Mon","Tue","Wed","Thu","Fri","Sat","Sun","Mon","TOTAL "]
[null,null,null,null,null,{"$f":"DaysAndWeeks+DATE(CalendarYear,F6,1)-WEEKDAY(DATE(CalendarYear,F6,1),(WeekStart=\"Mon\")+1)+1","v":"2021-08-29"},"2021-08-30","2021-08-31","2021-09-01","2021-09-02","2021-09-03","2021-09-04",{"$f":"DaysAndWeeks+DATE(CalendarYear,F6,1)-WEEKDAY(DATE(CalendarYear,F6,1),(WeekStart=\"Mon\")+1)+8","v":"2021-09-05"},"2021-09-06","2021-09-07","2021-09-08","2021-09-09","2021-09-10","2021-09-11",{"$f":"DaysAndWeeks+DATE(CalendarYear,F6,1)-WEEKDAY(DATE(CalendarYear,F6,1),(WeekStart=\"Mon\")+1)+15","v":"2021-09-12"},"2021-09-13","2021-09-14","2021-09-15","2021-09-16","2021-09-17","2021-09-18",{"$f":"DaysAndWeeks+DATE(CalendarYear,F6,1)-WEEKDAY(DATE(CalendarYear,F6,1),(WeekStart=\"Mon\")+1)+22","v":"2021-09-19"},"2021-09-20","2021-09-21","2021-09-22","2021-09-23","2021-09-24","2021-09-25",{"$f":"DaysAndWeeks+DATE(CalendarYear,F6,1)-WEEKDAY(DATE(CalendarYear,F6,1),(WeekStart=\"Mon\")+1)+29","v":"2021-09-26"},"2021-09-27","2021-09-28","2021-09-29","2021-09-30","2021-10-01","2021-10-02",{"$f":"DaysAndWeeks+DATE(CalendarYear,F6,1)-WEEKDAY(DATE(CalendarYear,F6,1),(WeekStart=\"Mon\")+1)+36","v":"2021-10-03"},"2021-10-04","HOURS"]
[null,null,null,null,null,null,null,null,null,null,null,null,null,null,null,null,null,null,null,null,null,null,null,null,null,null,null,null,null,null,null,null,null,null,null,null,null,null,null,null,null,null,{"$f":"SUM(I17:AL17)","v":0}]
[null,null,null,null,null,null,null,null,null,null,null,null,null,null,null,null,null,null,null,null,null,null,null,null,null,null,null,null,null,null,null,null,null,null,null,null,null,null,null,null,null,null,{"$f":"SUM(I18:AL18)","v":0}]
[null,null,null,null,null,null,null,null,null,null,null,null,null,null,null,null,null,null,null,null,null,null,null,null,null,null,null,null,null,null,null,null,null,null,null,null,null,null,null,null,null,null,0]
[null,null,null,null,null,null,null,null,null,null,null,null,null,null,null,null,null,null,null,null,null,null,null,null,null,null,null,null,null,null,null,null,null,null,null,null,null,null,null,null,null,null,0]
[null,null,null,null,null,null,null,null,null,null,null,null,null,null,null,null,null,null,null,null,null,null,null,null,null,null,null,null,null,null,null,null,null,null,null,null,null,null,null,null,null,null,0]
[null,null,null,null,null,null,null,null,null,null,null,null,null,null,null,null,null,null,null,null,null,null,null,null,null,null,null,null,null,null,null,null,null,null,null,null,null,null,null,null,null,null,0]
[null,null,null,null,null,null,null,null,null,null,null,null,null,null,null,null,null,null,null,null,null,null,null,null,null,null,null,null,null,null,null,null,null,null,null,null,null,null,null,null,null,null,0]
[{"$f":"IF(OR($H$10=\"\",D24=\"\"),\"\",$H$10)","v":""},{"$f":"IF(OR(CalendarYear=\"\",D24=\"\"),\"\",CalendarYear)","v":""},{"$f":"IF(OR($E$6=\"\",D24=\"\"),\"\",$E$6)","v":""},null,null,null,null,null,null,null,null,null,null,null,null,null,null,null,null,null,null,null,null,null,null,null,null,null,null,null,null,null,null,null,null,null,null,null,null,null,null,null,0]
["","","",null,null,null,null,null,null,null,null,null,null,null,null,null,null,null,null,null,null,null,null,null,null,null,null,null,null,null,null,null,null,null,null,null,null,null,null,null,null,null,0]
["","","",null,null,null,null,null,null,null,null,null,null,null,null,null,null,null,null,null,null,null,null,null,null,null,null,null,null,null,null,null,null,null,null,null,null,null,null,null,null,null,0]
[null,null,null,null,null,{"$f":"SUM(F17:F26)","v":0},0,0,0,0,0,0,0,0,0,0,0,0,0,0,0,0,0,0,0,0,0,0,0,0,0,0,0,0,0,0,0,0,0,0,0,0,{"$f":"SUM(AQ17:AQ26)","v":0}]
[]
[]
[]
[null,null,null,null,null,null,null,null,null,null,null,null,null,null,null,null,null,"Collaborator",null,null,null,null,null,null,null,null,null,null,null,null,null,null,"Supervisor"]
[]
[]
[null,null,null,null,null,null,null,null,null,null,null,null,null,null,null,null,null,"Date",null,null,null,null,null,null,null,null,null,null,null,null,null,null,"Date"]
[null,null,null,null,null,null,null,null,null,null,null,null,null,null,null,null,null,"______/______/______",null,null,null,null,null,null,null,null,null,null,null,null,null,null,"______/______/______"]

{"sheet":"Oct","index":9,"n_rows":35,"n_cols":43,"rows_kept":35,"cut":false,"hidden":false,"merged":[[34,17,34,26],[34,32,34,41],[14,3,15,3],[14,4,15,4],[30,17,30,26],[30,32,30,41],[33,17,33,26],[33,32,33,41],[11,7,11,12],[5,6,5,8],[6,3,6,42],[8,7,8,31],[9,7,9,31],[10,7,10,31]]}
[]
[null,null,null,null,null,null,null,null,"File Name",null,null,null,{"$f":"CONCATENATE(CalendarYear,\".\",F6,\".\",VLOOKUP(H10,'BD1'!B16:D35,3,FALSE),\".\",H10)","v":{"$error":"#N/A"}}]
[null,null,null,null,null,null,null,null,"Sheet Name",null,null,null,{"$f":"CONCATENATE(E6,\".\",CalendarYear)","v":"October.2021"}]
[null,null,null,"Beginning of the week","SUN"]
[null,null,null,"Year",2021]
[null,null,null,"Month","October",{"$f":"VLOOKUP(E6,'BD1'!B2:C13,2,FALSE)","v":10}]
[null,null,null,"TIMESHEET"]
[]
[null,null,null,null,null,null,"DEPARTMENT/SERVICE: "]
[null,null,null,null,null,null,"NAME:"]
[null,null,null,null,null,null,"CATEGORY:"]
[null,null,null,null,null,null,"MONHT/YEAR:",{"$f":"CONCATENATE(E6,\"/\",CalendarYear)","v":"October/2021"}]
[]
[null,null,null,null,null,{"$f":"AND(MONTH(F16)=MONTH($G$6),COUNTIF(feriados,F16)>0)","v":false},false,false,false,false,false,false,false,false,false,false,false,false,false,false,false,false,false,false,false,false,false,false,false,false,false,false,false,false,false,false,false,false,false,false,false,false]
[null,null,null,"Project ","Tasks","Sun","Mon","Tue","Wed","Thu","Fri","Sat","Sun","Mon","Tue","Wed","Thu","Fri","Sat","Sun","Mon","Tue","Wed","Thu","Fri","Sat","Sun","Mon","Tue","Wed","Thu","Fri","Sat","Sun","Mon","Tue","Wed","Thu","Fri","Sat","Sun","Mon","TOTAL "]
[null,null,null,null,null,{"$f":"DaysAndWeeks+DATE(CalendarYear,F6,1)-WEEKDAY(DATE(CalendarYear,F6,1),(WeekStart=\"Mon\")+1)+1","v":"2021-09-26"},"2021-09-27","2021-09-28","2021-09-29","2021-09-30","2021-10-01","2021-10-02",{"$f":"DaysAndWeeks+DATE(CalendarYear,F6,1)-WEEKDAY(DATE(CalendarYear,F6,1),(WeekStart=\"Mon\")+1)+8","v":"2021-10-03"},"2021-10-04","2021-10-05","2021-10-06","2021-10-07","2021-10-08","2021-10-09",{"$f":"DaysAndWeeks+DATE(CalendarYear,F6,1)-WEEKDAY(DATE(CalendarYear,F6,1),(WeekStart=\"Mon\")+1)+15","v":"2021-10-10"},"2021-10-11","2021-10-12","2021-10-13","2021-10-14","2021-10-15","2021-10-16",{"$f":"DaysAndWeeks+DATE(CalendarYear,F6,1)-WEEKDAY(DATE(CalendarYear,F6,1),(WeekStart=\"Mon\")+1)+22","v":"2021-10-17"},"2021-10-18","2021-10-19","2021-10-20","2021-10-21","2021-10-22","2021-10-23",{"$f":"DaysAndWeeks+DATE(CalendarYear,F6,1)-WEEKDAY(DATE(CalendarYear,F6,1),(WeekStart=\"Mon\")+1)+29","v":"2021-10-24"},"2021-10-25","2021-10-26","2021-10-27","2021-10-28","2021-10-29","2021-10-30",{"$f":"DaysAndWeeks+DATE(CalendarYear,F6,1)-WEEKDAY(DATE(CalendarYear,F6,1),(WeekStart=\"Mon\")+1)+36","v":"2021-10-31"},"2021-11-01","HOURS"]
[null,null,null,null,null,null,null,null,null,null,null,null,null,null,null,null,null,null,null,null,null,null,null,null,null,null,null,null,null,null,null,null,null,null,null,null,null,null,null,null,null,null,{"$f":"SUM(K17:AO17)","v":0}]
[null,null,null,null,null,null,null,null,null,null,null,null,null,null,null,null,null,null,null,null,null,null,null,null,null,null,null,null,null,null,null,null,null,null,null,null,null,null,null,null,null,null,{"$f":"SUM(K18:AO18)","v":0}]
[null,null,null,null,null,null,null,null,null,null,null,null,null,null,null,null,null,null,null,null,null,null,null,null,null,null,null,null,null,null,null,null,null,null,null,null,null,null,null,null,null,null,0]
[null,null,null,null,null,null,null,null,null,null,null,null,null,null,null,null,null,null,null,null,null,null,null,null,null,null,null,null,null,null,null,null,null,null,null,null,null,null,null,null,null,null,0]
[null,null,null,null,null,null,null,null,null,null,null,null,null,null,null,null,null,null,null,null,null,null,null,null,null,null,null,null,null,null,null,null,null,null,null,null,null,null,null,null,null,null,0]
[null,null,null,null,null,null,null,null,null,null,null,null,null,null,null,null,null,null,null,null,null,null,null,null,null,null,null,null,null,null,null,null,null,null,null,null,null,null,null,null,null,null,0]
[null,null,null,null,null,null,null,null,null,null,null,null,null,null,null,null,null,null,null,null,null,null,null,null,null,null,null,null,null,null,null,null,null,null,null,null,null,null,null,null,null,null,0]
[{"$f":"IF(OR($H$10=\"\",D24=\"\"),\"\",$H$10)","v":""},{"$f":"IF(OR(CalendarYear=\"\",D24=\"\"),\"\",CalendarYear)","v":""},{"$f":"IF(OR($E$6=\"\",D24=\"\"),\"\",$E$6)","v":""},null,null,null,null,null,null,null,null,null,null,null,null,null,null,null,null,null,null,null,null,null,null,null,null,null,null,null,null,null,null,null,null,null,null,null,null,null,null,null,0]
["","","",null,null,null,null,null,null,null,null,null,null,null,null,null,null,null,null,null,null,null,null,null,null,null,null,null,null,null,null,null,null,null,null,null,null,null,null,null,null,null,0]
["","","",null,null,null,null,null,null,null,null,null,null,null,null,null,null,null,null,null,null,null,null,null,null,null,null,null,null,null,null,null,null,null,null,null,null,null,null,null,null,null,0]
[null,null,null,null,null,{"$f":"SUM(F17:F26)","v":0},0,0,0,0,0,0,0,0,0,0,0,0,0,0,0,0,0,0,0,0,0,0,0,0,0,0,0,0,0,0,0,0,0,0,0,0,{"$f":"SUM(AQ17:AQ26)","v":0}]
[]
[]
[]
[null,null,null,null,null,null,null,null,null,null,null,null,null,null,null,null,null,"Collaborator",null,null,null,null,null,null,null,null,null,null,null,null,null,null,"Supervisor"]
[]
[]
[null,null,null,null,null,null,null,null,null,null,null,null,null,null,null,null,null,"Date",null,null,null,null,null,null,null,null,null,null,null,null,null,null,"Date"]
[null,null,null,null,null,null,null,null,null,null,null,null,null,null,null,null,null,"______/______/______",null,null,null,null,null,null,null,null,null,null,null,null,null,null,"______/______/______"]

{"sheet":"Nov","index":10,"n_rows":35,"n_cols":43,"rows_kept":35,"cut":false,"hidden":false,"merged":[[34,17,34,26],[34,32,34,41],[14,3,15,3],[14,4,15,4],[30,17,30,26],[30,32,30,41],[33,17,33,26],[33,32,33,41],[11,7,11,12],[5,6,5,8],[6,3,6,42],[8,7,8,31],[9,7,9,31],[10,7,10,31]]}
[]
[null,null,null,null,null,null,null,null,"File Name",null,null,null,{"$f":"CONCATENATE(CalendarYear,\".\",F6,\".\",VLOOKUP(H10,'BD1'!B16:D35,3,FALSE),\".\",H10)","v":{"$error":"#N/A"}}]
[null,null,null,null,null,null,null,null,"Sheet Name",null,null,null,{"$f":"CONCATENATE(E6,\".\",CalendarYear)","v":"November.2021"}]
[null,null,null,"Beginning of the week","SUN"]
[null,null,null,"Year",2021]
[null,null,null,"Month","November",{"$f":"VLOOKUP(E6,'BD1'!B2:C13,2,FALSE)","v":11}]
[null,null,null,"TIMESHEET"]
[]
[null,null,null,null,null,null,"DEPARTMENT/SERVICE: "]
[null,null,null,null,null,null,"NAME:"]
[null,null,null,null,null,null,"CATEGORY:"]
[null,null,null,null,null,null,"MONHT/YEAR:",{"$f":"CONCATENATE(E6,\"/\",CalendarYear)","v":"November/2021"}]
[]
[null,null,null,null,null,{"$f":"AND(MONTH(F16)=MONTH($G$6),COUNTIF(feriados,F16)>0)","v":false},false,false,false,false,false,false,false,false,false,false,false,false,false,false,false,false,false,false,false,false,false,false,false,false,false,false,false,false,false,false,false,false,false,false,false,false]
[null,null,null,"Project ","Tasks","Sun","Mon","Tue","Wed","Thu","Fri","Sat","Sun","Mon","Tue","Wed","Thu","Fri","Sat","Sun","Mon","Tue","Wed","Thu","Fri","Sat","Sun","Mon","Tue","Wed","Thu","Fri","Sat","Sun","Mon","Tue","Wed","Thu","Fri","Sat","Sun","Mon","TOTAL "]
[null,null,null,null,null,{"$f":"DaysAndWeeks+DATE(CalendarYear,F6,1)-WEEKDAY(DATE(CalendarYear,F6,1),(WeekStart=\"Mon\")+1)+1","v":"2021-10-31"},"2021-11-01","2021-11-02","2021-11-03","2021-11-04","2021-11-05","2021-11-06",{"$f":"DaysAndWeeks+DATE(CalendarYear,F6,1)-WEEKDAY(DATE(CalendarYear,F6,1),(WeekStart=\"Mon\")+1)+8","v":"2021-11-07"},"2021-11-08","2021-11-09","2021-11-10","2021-11-11","2021-11-12","2021-11-13",{"$f":"DaysAndWeeks+DATE(CalendarYear,F6,1)-WEEKDAY(DATE(CalendarYear,F6,1),(WeekStart=\"Mon\")+1)+15","v":"2021-11-14"},"2021-11-15","2021-11-16","2021-11-17","2021-11-18","2021-11-19","2021-11-20",{"$f":"DaysAndWeeks+DATE(CalendarYear,F6,1)-WEEKDAY(DATE(CalendarYear,F6,1),(WeekStart=\"Mon\")+1)+22","v":"2021-11-21"},"2021-11-22","2021-11-23","2021-11-24","2021-11-25","2021-11-26","2021-11-27",{"$f":"DaysAndWeeks+DATE(CalendarYear,F6,1)-WEEKDAY(DATE(CalendarYear,F6,1),(WeekStart=\"Mon\")+1)+29","v":"2021-11-28"},"2021-11-29","2021-11-30","2021-12-01","2021-12-02","2021-12-03","2021-12-04",{"$f":"DaysAndWeeks+DATE(CalendarYear,F6,1)-WEEKDAY(DATE(CalendarYear,F6,1),(WeekStart=\"Mon\")+1)+36","v":"2021-12-05"},"2021-12-06","HOURS"]
[null,null,null,null,null,null,null,null,null,null,null,null,null,null,null,null,null,null,null,null,null,null,null,null,null,null,null,null,null,null,null,null,null,null,null,null,null,null,null,null,null,null,{"$f":"SUM(G17:AJ17)","v":0}]
[null,null,null,null,null,null,null,null,null,null,null,null,null,null,null,null,null,null,null,null,null,null,null,null,null,null,null,null,null,null,null,null,null,null,null,null,null,null,null,null,null,null,{"$f":"SUM(G18:AJ18)","v":0}]
[null,null,null,null,null,null,null,null,null,null,null,null,null,null,null,null,null,null,null,null,null,null,null,null,null,null,null,null,null,null,null,null,null,null,null,null,null,null,null,null,null,null,0]
[null,null,null,null,null,null,null,null,null,null,null,null,null,null,null,null,null,null,null,null,null,null,null,null,null,null,null,null,null,null,null,null,null,null,null,null,null,null,null,null,null,null,0]
[null,null,null,null,null,null,null,null,null,null,null,null,null,null,null,null,null,null,null,null,null,null,null,null,null,null,null,null,null,null,null,null,null,null,null,null,null,null,null,null,null,null,0]
[null,null,null,null,null,null,null,null,null,null,null,null,null,null,null,null,null,null,null,null,null,null,null,null,null,null,null,null,null,null,null,null,null,null,null,null,null,null,null,null,null,null,0]
[null,null,null,null,null,null,null,null,null,null,null,null,null,null,null,null,null,null,null,null,null,null,null,null,null,null,null,null,null,null,null,null,null,null,null,null,null,null,null,null,null,null,0]
[{"$f":"IF(OR($H$10=\"\",D24=\"\"),\"\",$H$10)","v":""},{"$f":"IF(OR(CalendarYear=\"\",D24=\"\"),\"\",CalendarYear)","v":""},{"$f":"IF(OR($E$6=\"\",D24=\"\"),\"\",$E$6)","v":""},null,null,null,null,null,null,null,null,null,null,null,null,null,null,null,null,null,null,null,null,null,null,null,null,null,null,null,null,null,null,null,null,null,null,null,null,null,null,null,0]
["","","",null,null,null,null,null,null,null,null,null,null,null,null,null,null,null,null,null,null,null,null,null,null,null,null,null,null,null,null,null,null,null,null,null,null,null,null,null,null,null,0]
["","","",null,null,null,null,null,null,null,null,null,null,null,null,null,null,null,null,null,null,null,null,null,null,null,null,null,null,null,null,null,null,null,null,null,null,null,null,null,null,null,0]
[null,null,null,null,null,{"$f":"SUM(F17:F26)","v":0},0,0,0,0,0,0,0,0,0,0,0,0,0,0,0,0,0,0,0,0,0,0,0,0,0,0,0,0,0,0,0,0,0,0,0,0,{"$f":"SUM(AQ17:AQ26)","v":0}]
[]
[]
[]
[null,null,null,null,null,null,null,null,null,null,null,null,null,null,null,null,null,"Collaborator",null,null,null,null,null,null,null,null,null,null,null,null,null,null,"Supervisor"]
[]
[]
[null,null,null,null,null,null,null,null,null,null,null,null,null,null,null,null,null,"Date",null,null,null,null,null,null,null,null,null,null,null,null,null,null,"Date"]
[null,null,null,null,null,null,null,null,null,null,null,null,null,null,null,null,null,"______/______/______",null,null,null,null,null,null,null,null,null,null,null,null,null,null,"______/______/______"]

{"sheet":"Dec","index":11,"n_rows":35,"n_cols":43,"rows_kept":35,"cut":false,"hidden":false,"merged":[[34,17,34,26],[34,32,34,41],[14,3,15,3],[14,4,15,4],[30,17,30,26],[30,32,30,41],[33,17,33,26],[33,32,33,41],[11,7,11,12],[5,6,5,8],[6,3,6,42],[8,7,8,31],[9,7,9,31],[10,7,10,31]]}
[]
[null,null,null,null,null,null,null,null,"File Name",null,null,null,{"$f":"CONCATENATE(CalendarYear,\".\",F6,\".\",VLOOKUP(H10,'BD1'!B16:D35,3,FALSE),\".\",H10)","v":{"$error":"#N/A"}}]
[null,null,null,null,null,null,null,null,"Sheet Name",null,null,null,{"$f":"CONCATENATE(E6,\".\",CalendarYear)","v":"December.2021"}]
[null,null,null,"Beginning of the week","SUN"]
[null,null,null,"Year",2021]
[null,null,null,"Month","December",{"$f":"VLOOKUP(E6,'BD1'!B2:C13,2,FALSE)","v":12}]
[null,null,null,"TIMESHEET"]
[]
[null,null,null,null,null,null,"DEPARTMENT/SERVICE: "]
[null,null,null,null,null,null,"NAME:"]
[null,null,null,null,null,null,"CATEGORY:"]
[null,null,null,null,null,null,"MONHT/YEAR:",{"$f":"CONCATENATE(E6,\"/\",CalendarYear)","v":"December/2021"}]
[]
[null,null,null,null,null,{"$f":"AND(MONTH(F16)=MONTH($G$6),COUNTIF(feriados,F16)>0)","v":false},false,false,false,false,false,false,false,false,false,false,false,false,false,false,false,false,false,false,false,false,false,false,false,false,false,false,false,false,false,false,false,false,false,false,false,false]
[null,null,null,"Project ","Tasks","Sun","Mon","Tue","Wed","Thu","Fri","Sat","Sun","Mon","Tue","Wed","Thu","Fri","Sat","Sun","Mon","Tue","Wed","Thu","Fri","Sat","Sun","Mon","Tue","Wed","Thu","Fri","Sat","Sun","Mon","Tue","Wed","Thu","Fri","Sat","Sun","Mon","TOTAL "]
[null,null,null,null,null,{"$f":"DaysAndWeeks+DATE(CalendarYear,F6,1)-WEEKDAY(DATE(CalendarYear,F6,1),(WeekStart=\"Mon\")+1)+1","v":"2021-11-28"},"2021-11-29","2021-11-30","2021-12-01","2021-12-02","2021-12-03","2021-12-04",{"$f":"DaysAndWeeks+DATE(CalendarYear,F6,1)-WEEKDAY(DATE(CalendarYear,F6,1),(WeekStart=\"Mon\")+1)+8","v":"2021-12-05"},"2021-12-06","2021-12-07","2021-12-08","2021-12-09","2021-12-10","2021-12-11",{"$f":"DaysAndWeeks+DATE(CalendarYear,F6,1)-WEEKDAY(DATE(CalendarYear,F6,1),(WeekStart=\"Mon\")+1)+15","v":"2021-12-12"},"2021-12-13","2021-12-14","2021-12-15","2021-12-16","2021-12-17","2021-12-18",{"$f":"DaysAndWeeks+DATE(CalendarYear,F6,1)-WEEKDAY(DATE(CalendarYear,F6,1),(WeekStart=\"Mon\")+1)+22","v":"2021-12-19"},"2021-12-20","2021-12-21","2021-12-22","2021-12-23","2021-12-24","2021-12-25",{"$f":"DaysAndWeeks+DATE(CalendarYear,F6,1)-WEEKDAY(DATE(CalendarYear,F6,1),(WeekStart=\"Mon\")+1)+29","v":"2021-12-26"},"2021-12-27","2021-12-28","2021-12-29","2021-12-30","2021-12-31","2022-01-01",{"$f":"DaysAndWeeks+DATE(CalendarYear,F6,1)-WEEKDAY(DATE(CalendarYear,F6,1),(WeekStart=\"Mon\")+1)+36","v":"2022-01-02"},"2022-01-03","HOURS"]
[null,null,null,null,null,null,null,null,null,null,null,null,null,null,null,null,null,null,null,null,null,null,null,null,null,null,null,null,null,null,null,null,null,null,null,null,null,null,null,null,null,null,{"$f":"SUM(I17:AM17)","v":0}]
[null,null,null,null,null,null,null,null,null,null,null,null,null,null,null,null,null,null,null,null,null,null,null,null,null,null,null,null,null,null,null,null,null,null,null,null,null,null,null,null,null,null,{"$f":"SUM(I18:AM18)","v":0}]
[null,null,null,null,null,null,null,null,null,null,null,null,null,null,null,null,null,null,null,null,null,null,null,null,null,null,null,null,null,null,null,null,null,null,null,null,null,null,null,null,null,null,0]
[null,null,null,null,null,null,null,null,null,null,null,null,null,null,null,null,null,null,null,null,null,null,null,null,null,null,null,null,null,null,null,null,null,null,null,null,null,null,null,null,null,null,0]
[null,null,null,null,null,null,null,null,null,null,null,null,null,null,null,null,null,null,null,null,null,null,null,null,null,null,null,null,null,null,null,null,null,null,null,null,null,null,null,null,null,null,0]
[null,null,null,null,null,null,null,null,null,null,null,null,null,null,null,null,null,null,null,null,null,null,null,null,null,null,null,null,null,null,null,null,null,null,null,null,null,null,null,null,null,null,0]
[null,null,null,null,null,null,null,null,null,null,null,null,null,null,null,null,null,null,null,null,null,null,null,null,null,null,null,null,null,null,null,null,null,null,null,null,null,null,null,null,null,null,0]
[{"$f":"IF(OR($H$10=\"\",D24=\"\"),\"\",$H$10)","v":""},{"$f":"IF(OR(CalendarYear=\"\",D24=\"\"),\"\",CalendarYear)","v":""},{"$f":"IF(OR($E$6=\"\",D24=\"\"),\"\",$E$6)","v":""},null,null,null,null,null,null,null,null,null,null,null,null,null,null,null,null,null,null,null,null,null,null,null,null,null,null,null,null,null,null,null,null,null,null,null,null,null,null,null,0]
["","","",null,null,null,null,null,null,null,null,null,null,null,null,null,null,null,null,null,null,null,null,null,null,null,null,null,null,null,null,null,null,null,null,null,null,null,null,null,null,null,0]
["","","",null,null,null,null,null,null,null,null,null,null,null,null,null,null,null,null,null,null,null,null,null,null,null,null,null,null,null,null,null,null,null,null,null,null,null,null,null,null,null,0]
[null,null,null,null,null,{"$f":"SUM(F17:F26)","v":0},0,0,0,0,0,0,0,0,0,0,0,0,0,0,0,0,0,0,0,0,0,0,0,0,0,0,0,0,0,0,0,0,0,0,0,0,{"$f":"SUM(AQ17:AQ26)","v":0}]
[]
[]
[]
[null,null,null,null,null,null,null,null,null,null,null,null,null,null,null,null,null,"Collaborator",null,null,null,null,null,null,null,null,null,null,null,null,null,null,"Supervisor"]
[]
[]
[null,null,null,null,null,null,null,null,null,null,null,null,null,null,null,null,null,"Date",null,null,null,null,null,null,null,null,null,null,null,null,null,null,"Date"]
[null,null,null,null,null,null,null,null,null,null,null,null,null,null,null,null,null,"______/______/______",null,null,null,null,null,null,null,null,null,null,null,null,null,null,"______/______/______"]

{"sheet":"BD1","index":12,"n_rows":56,"n_cols":6,"rows_kept":56,"cut":false,"hidden":false,"merged":[]}
[null,"Month"]
[null,"January","01","janeiro"]
[null,"February","02","fevereiro"]
[null,"March","03","março"]
[null,"April","04","abril"]
[null,"May","05","maio"]
[null,"June","06","junho"]
[null,"July","07","julho"]
[null,"August","08","agosto"]
[null,"September","09","setembro"]
[null,"October",10,"outubro"]
[null,"November",11,"novembro"]
[null,"December",12,"dezembro"]
[]
[null,"NAME","CATEGORY","DEPARTMENT/SERVICE: ","PROJECT","TASK"]
[]
[]
[]
[]
[]
[]
[]
[]
[]
[]
[]
[]
[]
[]
[]
[]
[]
[]
[]
[]
[]
[]
[null,"DATA","DIA DA SEMANA","DESCRIÇÃO"]
[null,"Feriados Fixos"]
[null,{"$f":"DATE(CalendarYear,1,1)","v":"2021-01-01"},{"$f":"TEXT(B40,\"dddd\")","v":"sexta-feira"},"Ano Novo"]
[null,{"$f":"DATE(CalendarYear,4,25)","v":"2021-04-25"},"domingo","25 de Abril"]
[null,{"$f":"DATE(CalendarYear,5,1)","v":"2021-05-01"},"sábado","Dia do Trabalhador"]
[null,{"$f":"DATE(CalendarYear,6,10)","v":"2021-06-10"},"quinta-feira","Dia de Portugal"]
[null,{"$f":"DATE(CalendarYear,6,13)","v":"2021-06-13"},"domingo","Dia de Santo António"]
[null,{"$f":"DATE(CalendarYear,8,15)","v":"2021-08-15"},"domingo","Assunção Nossa Srª."]
[null,{"$f":"DATE(CalendarYear,10,5)","v":"2021-10-05"},"terça-feira","Implantação da República"]
[null,{"$f":"DATE(CalendarYear,11,1)","v":"2021-11-01"},"segunda-feira","Dia de Todos os Santos"]
[null,{"$f":"DATE(CalendarYear,12,1)","v":"2021-12-01"},"quarta-feira","Restauração da Independência"]
[null,{"$f":"DATE(CalendarYear,12,8)","v":"2021-12-08"},"quarta-feira","Nossa Srª. Da Conceição"]
[null,{"$f":"DATE(CalendarYear,12,25)","v":"2021-12-25"},"sábado","Natal"]
[null,"Feriados Móveis"]
[null,{"$f":"Pascoa-47","v":"2021-02-16"},{"$f":"TEXT(B52,\"dddd\")","v":"terça-feira"},"Carnaval"]
[null,{"$f":"Pascoa-2","v":"2021-04-02"},{"$f":"TEXT(B53,\"dddd\")","v":"sexta-feira"},"Sexta-Feira Santa"]
[null,{"$f":"Pascoa","v":"2021-04-04"},{"$f":"TEXT(B54,\"dddd\")","v":"domingo"},"Páscoa"]
[null,{"$f":"Pascoa+60","v":"2021-06-03"},{"$f":"TEXT(B55,\"dddd\")","v":"quinta-feira"},"Corpo de Deus"]
[null,"Outros Feriados"]